fUST/lending_fUST_20240307
["ID","MTS","AMOUNT","RATE_DAILY","PERIOD"]
[317392821,1709793031838,-1276.04126711,0.000229,2]
[317392822,1709793031847,-581.0,0.000229,2]
[317392823,1709793031856,-153.0,0.00022904,2]
[317392824,1709793031865,-153.0,0.00022904,2]
[317392825,1709793031874,-153.0,0.00022904,2]
[317392826,1709793031883,-153.0,0.00022904,2]
[317392827,1709793031892,-153.0,0.00022904,2]
[317392828,1709793031901,-176.20974066,0.00022998,2]
[317392829,1709793031910,-1605.3304544,0.00022998,2]
[317392830,1709793031919,-11300.28576696,0.00022999,2]
[317392831,1709793031929,-500.0,0.00022999,2]
[317392832,1709793031938,-500.0,0.00022999,2]
[317392833,1709793031947,-500.0,0.00022999,2]
[317392834,1709793031956,-500.0,0.00022999,2]
[317392835,1709793031965,-500.0,0.00022999,2]
[317392836,1709793031974,-615.84543472,0.00022999,2]
[317392837,1709793031984,-160.0,0.00022999,2]
[317392838,1709793031993,-160.0,0.00022999,2]
[317392839,1709793032003,-160.0,0.00022999,2]
[317392840,1709793032012,-160.0,0.00022999,2]
[317392841,1709793032021,-160.0,0.00022999,2]
[317392842,1709793032031,-160.0,0.00022999,2]
[317392843,1709793032041,-208632.79471539,0.00023,5]
[317392885,1709793037737,-1510.87777639,0.00023,5]
[317392899,1709793037874,-3907.92423713,0.00023,5]
[317393542,1709793044367,-4609.24864237,0.000229,2]
[317393544,1709793044379,-2328.74197365,0.000229,2]
[317393546,1709793044390,-21087.99440021,0.000229,2]
[317393675,1709793045840,-4505.43696843,0.000229,2]
[317393677,1709793045853,-3366.1999995,0.000229,2]
[317394033,1709793049340,-87806.01342105,0.000229,2]
[317394035,1709793049356,-152296.36459479,0.000229,2]
[317394038,1709793049367,-414.30270122,0.00022998,2]
[317394040,1709793049377,-315.35971624,0.00022999,2]
[317394042,1709793049387,-500.0,0.00022999,2]
[317394044,1709793049396,-500.0,0.00022999,2]
[317394046,1709793049406,-253.68897254,0.00022999,2]
[317394048,1709793049415,-458.15882424,0.00022999,2]
[317394050,1709793049425,-500.0,0.00022999,2]
[317394052,1709793049436,-500.0,0.00022999,2]
[317394054,1709793049447,-500.0,0.00022999,2]
[317394056,1709793049457,-500.0,0.00022999,2]
[317394058,1709793049468,-500.0,0.00022999,2]
[317394060,1709793049478,-500.0,0.00022999,2]
[317394062,1709793049489,-500.0,0.00022999,2]
[317394064,1709793049500,-500.0,0.00022999,2]
[317394066,1709793049511,-500.0,0.00022999,2]
[317394068,1709793049522,-500.0,0.00022999,2]
[317394070,1709793049532,-500.0,0.00022999,2]
[317394072,1709793049541,-500.0,0.00022999,2]
[317394074,1709793049553,-500.0,0.00022999,2]
[317394076,1709793049564,-500.0,0.00022999,2]
[317394078,1709793049573,-159.49883185,0.00022999,2]
[317394080,1709793049588,-500.0,0.00022999,2]
[317394082,1709793049598,-500.0,0.00022999,2]
[317394084,1709793049609,-500.0,0.00022999,2]
[317394086,1709793049620,-388.02645781,0.00022999,2]
[317394089,1709793049636,-500.0,0.00022999,2]
[317394090,1709793049647,-500.0,0.00022999,2]
[317394092,1709793049658,-500.0,0.00022999,2]
[317394094,1709793049669,-500.0,0.00022999,2]
[317394097,1709793049678,-500.0,0.00022999,2]
[317394098,1709793049688,-271.99094294,0.00022999,2]
[317394101,1709793049698,-500.0,0.00022999,2]
[317394103,1709793049709,-412.52917789,0.00022999,2]
[317394105,1709793049719,-152903.1862296,0.00023,5]
[317394107,1709793049732,-1932.42451442,0.00023,5]
[317397695,1709794238014,-154.95351395,0.00019758,2]
[317397696,1709794238024,-154.95351395,0.00019759,2]
[317397697,1709794238033,-178.639582,0.00019767,2]
[317397698,1709794238044,-502.06222346,0.000199,2]
[317397699,1709794238054,-178.639582,0.0002044,2]
[317397700,1709794238063,-150.0,0.00020504,2]
[317397701,1709794238072,-24900.0,0.00020505,2]
[317397702,1709794238081,-172.64249754,0.00020713,2]
[317397703,1709794238090,-170.3347904,0.00020899,2]
[317397704,1709794238099,-150.0,0.000209,2]
[317397705,1709794238108,-178.639582,0.00021114,2]
[317397706,1709794238117,-178.639582,0.00021788,2]
[317397707,1709794238127,-336.48470009,0.00021848,2]
[317397708,1709794238135,-153.0,0.00021878,2]
[317397709,1709794238145,-357.0,0.00022,2]
[317397710,1709794238154,-357.0,0.00022192,2]
[317397711,1709794238164,-165.386942,0.00022365,2]
[317397712,1709794238173,-864.401622,0.00022365,2]
[317397713,1709794238182,-1286.64635,0.00022365,2]
[317397714,1709794238191,-61670.64671442,0.00022382,3]
[317397715,1709794238200,-11562.41184358,0.00022382,3]
[317397716,1709794238210,-307.6121894,0.000224,2]
[317397717,1709794238219,-178.639582,0.00022461,2]
[317397718,1709794238227,-210.0,0.00022549,2]
[317397719,1709794238237,-864.401622,0.00022644,2]
[317397720,1709794238246,-1286.64635,0.00022644,2]
[317397721,1709794238255,-1489.75639963,0.00022898,2]
[317397722,1709794238264,-1489.75639961,0.00022899,2]
[317397723,1709794238273,-1489.75639961,0.00022899,2]
[317397724,1709794238282,-500.0,0.00022899,2]
[317397725,1709794238293,-500.0,0.00022899,2]
[317397726,1709794238302,-500.0,0.00022899,2]
[317397727,1709794238311,-500.0,0.00022899,2]
[317397728,1709794238321,-336.63942424,0.00022899,2]
[317397729,1709794238331,-154.22516198,0.00022899,2]
[317397730,1709794238339,-491.72395616,0.00022899,2]
[317397731,1709794238349,-478.19707052,0.00022899,2]
[317397732,1709794238358,-500.0,0.00022899,2]
[317397733,1709794238445,-1489.75639961,0.000229,2]
[317397734,1709794238457,-45147.53738334,0.000229,2]
[317397735,1709794238467,-1489.75639961,0.000229,2]
[317397736,1709794238476,-1148.43714037,0.00022902,2]
[317397737,1709794238485,-1148.43714037,0.00022903,2]
[317397738,1709794238495,-1148.43714037,0.00022905,2]
[317397739,1709794238504,-1148.43714037,0.00022906,2]
[317397740,1709794238514,-1148.43714037,0.00022908,2]
[317397741,1709794238524,-1148.43714037,0.00022909,2]
[317397742,1709794238535,-1148.43714037,0.00022911,2]
[317397743,1709794238545,-1148.43714037,0.00022912,2]
[317397744,1709794238554,-172.64249753,0.00022914,2]
[317397745,1709794238564,-1148.43714037,0.00022914,2]
[317397746,1709794238573,-864.401622,0.00022924,2]
[317397747,1709794238582,-1286.64635,0.00022924,2]
[317397748,1709794238592,-1500.0,0.00022973,2]
[317397749,1709794238601,-8242.71882646,0.00022975,2]
[317397750,1709794238611,-1158.88140037,0.00022998,2]
[317397751,1709794238620,-238.75085249,0.00022998,2]
[317397752,1709794238629,-1506.79234694,0.00022998,2]
[317397753,1709794238638,-596.10414782,0.00022998,2]
[317397754,1709794238647,-163.28505548,0.00022998,2]
[317397755,1709794238656,-524.36348102,0.00022998,2]
[317397756,1709794238665,-745.36465456,0.00022999,2]
[317397757,1709794238674,-160.0,0.00022999,2]
[317397758,1709794238684,-160.0,0.00022999,2]
[317397759,1709794238693,-160.0,0.00022999,2]
[317397760,1709794238702,-160.0,0.00022999,2]
[317397761,1709794238711,-1398196.13004912,0.00023,5]
[317397762,1709794238721,-1270.38666448,0.00023,2]
[317397763,1709794238730,-407.0,0.00023,2]
[317397764,1709794238739,-285.30767472,0.00023,2]
[317397765,1709794238749,-5500.00264397,0.00023,2]
[317397766,1709794238758,-223.94404608,0.00023,2]
[317397767,1709794238767,-5008.38260036,0.00023,2]
[317397768,1709794238776,-582.1342975,0.00023,2]
[317397769,1709794238787,-174.0,0.00023,2]
[317397770,1709794238796,-175.5,0.00023,2]
[317397771,1709794238806,-175.5,0.00023,2]
[317397772,1709794238815,-10588.69,0.00023,2]
[317397773,1709794238825,-5030.78,0.00023,2]
[317397774,1709794238834,-784.56,0.00023,2]
[317397775,1709794238844,-12500.0,0.00023,2]
[317397777,1709794238853,-12500.0,0.00023,2]
[317397778,1709794238862,-3623.03,0.00023,2]
[317397779,1709794238872,-300.0,0.00023,10]
[317397780,1709794238881,-500.0,0.00023,2]
[317397781,1709794238891,-2508576.65577896,0.00023,5]
[317397782,1709794238903,-17137.39290228,0.00023,5]
[317397792,1709794243106,-6767.07051955,0.00023,5]
[317397793,1709794243120,-420.31309063,0.00023,5]
[317397794,1709794243134,-5611.8452091,0.00023,5]
[317397856,1709794246132,-198638.33273076,0.00023,5]
[317397858,1709794246145,-229916.20109831,0.00023,5]
[317398165,1709795432182,-524.20778319,0.00018077,2]
[317398167,1709795432192,-1008.90900513,0.00018078,2]
[317398177,1709795432284,-7290.88255021,0.00018179,2]
[317398179,1709795432294,-8255.6366116,0.00019618,2]
[317398181,1709795432303,-178.639583,0.00019975,2]
[317398183,1709795432312,-336.52126731,0.0002,2]
[317398185,1709795432321,-238.79913038,0.0002,2]
[317398187,1709795432330,-264.7865504,0.00020257,2]
[317398189,1709795432339,-219.10119789,0.000209,2]
[317398191,1709795432349,-24900.0,0.00021022,2]
[317398193,1709795432358,-170.95812211,0.00021188,2]
[317398195,1709795432367,-5069.29553818,0.00021288,7]
[317398198,1709795432382,-11545.75726182,0.00021288,7]
[317398201,1709795432404,-1746.47296173,0.000219,2]
[317398203,1709795432415,-309.360371,0.00021918,2]
[317398205,1709795432425,-21812.814011,0.00021918,15]
[317398207,1709795432436,-401.10924336,0.00021918,2]
[317398209,1709795432446,-500.0,0.00021999,2]
[317398211,1709795432456,-500.0,0.00021999,2]
[317398213,1709795432466,-336.63942424,0.00021999,2]
[317398216,1709795432477,-491.72395616,0.00021999,2]
[317398217,1709795432487,-500.0,0.00021999,2]
[317398220,1709795432499,-500.0,0.00021999,2]
[317398221,1709795432509,-478.19707052,0.00021999,2]
[317398223,1709795432519,-154.22516198,0.00021999,2]
[317398225,1709795432528,-500.0,0.00021999,2]
[317398227,1709795432538,-37858.15175407,0.00022,2]
[317398310,1709795440259,-168107.2333653,0.00022,2]
[317398313,1709795440268,-523.0,0.00022,2]
[317398315,1709795440277,-1668.03514243,0.00022,2]
[317398317,1709795440286,-8242.71882646,0.00022,2]
[317398319,1709795440296,-1746.47296171,0.0002215,2]
[317398321,1709795440305,-523.0,0.00022192,2]
[317398323,1709795440314,-514.65854,0.00022365,2]
[317398325,1709795440323,-345.760649,0.00022365,2]
[317398327,1709795440333,-165.386942,0.00022365,2]
[317398329,1709795440343,-172.880324,0.00022365,2]
[317398331,1709795440352,-257.32927,0.00022365,2]
[317398333,1709795440361,-351.33022338,0.00022381,2]
[317398335,1709795440371,-500.0,0.00022381,2]
[317398336,1709795440380,-500.0,0.00022381,2]
[317398342,1709795440483,-500.0,0.00022381,2]
[317398343,1709795440493,-500.0,0.00022381,2]
[317398345,1709795440506,-500.0,0.00022381,2]
[317398347,1709795440516,-449.5506056,0.00022381,2]
[317398349,1709795440526,-14509.13310465,0.00022382,3]
[317398351,1709795440536,-10224.24087691,0.00022382,3]
[317398352,1709795440547,-20687.86973397,0.00022382,3]
[317398354,1709795440557,-10060.49820138,0.00022382,3]
[317398356,1709795440566,-1746.47296171,0.000224,2]
[317398358,1709795440576,-514.65854,0.00022644,2]
[317398360,1709795440586,-345.760649,0.00022644,2]
[317398362,1709795440595,-172.880324,0.00022644,2]
[317398364,1709795440604,-257.32927,0.00022644,2]
[317398366,1709795440613,-1746.47296171,0.0002265,2]
[317398368,1709795440622,-178.639583,0.00022698,2]
[317398370,1709795440632,-218.92941117,0.00022885,2]
[317398372,1709795440642,-45147.53738334,0.000229,2]
[317398373,1709795440652,-12687.85002108,0.000229,2]
[317398375,1709795440662,-1746.47296171,0.000229,2]
[317398377,1709795440672,-170.9581221,0.000229,2]
[317398379,1709795440681,-514.65854,0.00022924,2]
[317398381,1709795440691,-345.760649,0.00022924,2]
[317398383,1709795440701,-172.880324,0.00022924,2]
[317398385,1709795440711,-257.32927,0.00022924,2]
[317398387,1709795440720,-157.81000743,0.00022998,2]
[317398389,1709795440731,-438.15714545,0.00022998,2]
[317398391,1709795440740,-155.3144114,0.00022998,2]
[317398393,1709795440753,-625.43159908,0.00022998,2]
[317398395,1709795440763,-265.53579139,0.00022998,2]
[317398397,1709795440772,-1158.88140037,0.00022998,2]
[317398399,1709795440782,-163.28505548,0.00022998,2]
[317398401,1709795440791,-745.36465456,0.00022998,2]
[317398402,1709795440802,-1506.79234694,0.00022998,2]
[317398405,1709795440815,-596.10414782,0.00022998,2]
[317398407,1709795440825,-1950.60602556,0.00022998,2]
[317398409,1709795440834,-151.0,0.00022999,2]
[317398411,1709795440844,-151.0,0.00022999,2]
[317398412,1709795440854,-1170.75169083,0.00022999,3]
[317398414,1709795440863,-1391.2056662,0.00022999,2]
[317398416,1709795440872,-173.24715918,0.00022999,2]
[317398418,1709795440883,-160.0,0.00022999,2]
[317398420,1709795440894,-160.0,0.00022999,2]
[317398422,1709795440903,-3934526.42777776,0.00023,5]
[317398457,1709795441239,-2388.80527555,0.00023,5]
[317398459,1709795441252,-28380.79902262,0.00023,5]
[317398461,1709795441264,-6904.5774537,0.00023,5]
[317399218,1709795449224,-4434.00839769,0.00023,5]
[317399238,1709795449407,-78086.25729253,0.00023,5]
[317399240,1709795449419,-474.17740683,0.00023,5]
[317411724,1709796207474,-336.52126731,0.00020302,2]
[317411725,1709796207512,-705.70581975,0.00020302,2]
[317411726,1709796207534,-336.52126731,0.00020303,2]
[317411727,1709796207547,-705.70581975,0.00020303,2]
[317411728,1709796207561,-3418.54582588,0.00020303,2]
[317411810,1709796633301,-827.4200375,0.000188,2]
[317411811,1709796633314,-438.43832555,0.000189,2]
[317411812,1709796633326,-336.52126731,0.0002,2]
[317411813,1709796633341,-167.353421,0.00020076,2]
[317411814,1709796633354,-155.00310006,0.00020303,2]
[317411816,1709796633369,-165.393169,0.00020408,2]
[317411817,1709796633384,-24029.64949522,0.00020848,2]
[317412645,1709796646478,-250.0,0.00020314,2]
[317412647,1709796646489,-870.35050478,0.00020848,2]
[317412649,1709796646499,-177.242127,0.00020855,2]
[317412651,1709796646508,-167.353421,0.00021445,2]
[317412654,1709796646519,-307.6121894,0.00021578,2]
[317412656,1709796646529,-642.07672167,0.00021766,2]
[317412658,1709796646541,-309.360372,0.00021918,2]
[317412659,1709796646551,-392.0,0.00022,2]
[317412661,1709796646560,-1668.03514243,0.00022,2]
[317412664,1709796646570,-8242.71882646,0.00022,2]
[317412665,1709796646579,-392.0,0.00022192,2]
[317412668,1709796646589,-9575.71146148,0.00022382,3]
[317412670,1709796646599,-934.93179228,0.00022382,3]
[317412671,1709796646608,-3145.78113111,0.00022382,3]
[317412673,1709796646618,-3834.16830791,0.00022382,3]
[317412675,1709796646627,-153.0,0.000224,2]
[317412678,1709796646636,-306.2467424,0.000224,2]
[317412680,1709796646646,-306.0,0.000224,2]
[317412682,1709796646655,-153.196416,0.000224,2]
[317412684,1709796646665,-388.5629765,0.000224,2]
[317412686,1709796646674,-306.0,0.000224,2]
[317412688,1709796646683,-173.52457612,0.0002268,6]
[317423166,1709797088888,-4827.91270892,0.0002,2]
[317423167,1709797088911,-336.52126731,0.0002,2]
[317423168,1709797107387,155.0,0.0002,2]
[317423170,1709797125882,155.0,0.0002,2]
[317423172,1709797150395,155.0,0.0002,2]
[317423173,1709797189390,155.0,0.0002,2]
[317423174,1709797429877,18910.78723334,0.0002,2]
[317423177,1709797572303,292.29221703,0.000189,2]
[317423229,1709797834191,-155.0,0.00020219,2]
[317423230,1709797834201,-167.353421,0.0002022,2]
[317423231,1709797834210,-202.1766683,0.00020351,2]
[317423232,1709797834222,-150.0,0.00020894,2]
[317423233,1709797834232,-2409.10062913,0.00020895,2]
[317423234,1709797834244,-22490.89937087,0.00020895,2]
[317423235,1709797834254,-202.1766683,0.00021513,2]
[317423236,1709797834263,-162.218824,0.00021705,2]
[317423237,1709797834273,-1069.66253688,0.000218,2]
[317423239,1709797834285,-489.24075411,0.00021848,2]
[317423240,1709797834293,-676.44136322,0.000219,2]
[317423241,1709797834302,-306.9615974,0.00021978,2]
[317423242,1709797834311,-294.0,0.00022,2]
[317423243,1709797834320,-1668.03514243,0.00022,2]
[317423244,1709797834330,-8242.71882646,0.00022,2]
[317423245,1709797834339,-294.0,0.00022192,2]
[317423246,1709797834349,-5000.0,0.00022382,7]
[317423247,1709797834359,-5366.22988598,0.00022382,3]
[317423248,1709797834368,-5000.0,0.00022382,7]
[317423249,1709797834378,-5000.0,0.00022382,7]
[317423250,1709797834388,-2872.71343845,0.00022382,3]
[317423251,1709797834398,-1196.7487938,0.0002268,6]
[317423252,1709797834410,-621.10383608,0.00022854,2]
[317423253,1709797834420,-594.02429474,0.000229,2]
[317423254,1709797834431,-200.0,0.000229,2]
[317423255,1709797834441,-210.0,0.00022973,2]
[317423256,1709797834452,-1605.3304544,0.00022998,2]
[317423257,1709797834462,-155.57723619,0.00022998,2]
[317423258,1709797834473,-315.35971624,0.00022998,2]
[317423259,1709797834484,-238.32208588,0.00022998,2]
[317423260,1709797834494,-11411.81768416,0.00022998,2]
[317423261,1709797834504,-524.35492331,0.00022999,2]
[317423262,1709797834515,-239.42363109,0.00022999,2]
[317423263,1709797834527,-245.93115637,0.00022999,2]
[317423264,1709797834540,-500.0,0.00022999,2]
[317423265,1709797834549,-500.0,0.00022999,2]
[317423266,1709797834559,-500.0,0.00022999,2]
[317423268,1709797834568,-500.0,0.00022999,2]
[317423269,1709797834578,-214.68542392,0.00022999,2]
[317423270,1709797834588,-500.0,0.00022999,2]
[317423271,1709797834598,-500.0,0.00022999,2]
[317423272,1709797834608,-500.0,0.00022999,2]
[317423273,1709797834617,-500.0,0.00022999,2]
[317423274,1709797834627,-626.42847583,0.00022999,2]
[317423275,1709797834636,-381.85,0.00022999,2]
[317423276,1709797834646,-381.85,0.00022999,2]
[317423277,1709797834655,-381.85,0.00022999,2]
[317423278,1709797834664,-381.85,0.00022999,2]
[317423279,1709797834674,-381.85,0.00022999,2]
[317423280,1709797834684,-381.85,0.00022999,2]
[317423281,1709797834694,-381.85,0.00022999,2]
[317423282,1709797834704,-381.85,0.00022999,2]
[317423283,1709797834713,-160.0,0.00022999,2]
[317423284,1709797834723,-160.0,0.00022999,2]
[317423285,1709797834732,-160.0,0.00022999,2]
[317423287,1709797834742,-160.0,0.00022999,2]
[317423288,1709797834751,-160.0,0.00022999,2]
[317423289,1709797834760,-160.0,0.00022999,2]
[317423290,1709797834770,-160.0,0.00022999,2]
[317423291,1709797834782,-160.0,0.00022999,2]
[317423292,1709797834792,-155365.2719929,0.00023,5]
[317423300,1709797838579,-2346.22751272,0.00023,5]
[317423301,1709797838591,-35964.24297031,0.00023,5]
[317423302,1709797838658,-1784.96130203,0.00023,5]
[317423566,1709797841471,-423.92000005,0.00023,5]
[317423776,1709797843683,-4930.77765775,0.00023,5]
[317423779,1709797843695,-745.99633611,0.00023,5]
[317424077,1709797846814,-108362.76438446,0.00023,5]
[317430530,1709798596092,1000.0,0.0002,2]
[317430531,1709798777055,194.86147802,0.000189,2]
[317430532,1709798823626,218.92941117,0.000199,2]
[317430577,1709799036596,-150.0,0.00020838,2]
[317430579,1709799036606,-1115.26291574,0.00020838,2]
[317430594,1709799038805,-490.66090864,0.00020838,2]
[317430595,1709799038814,-24900.0,0.00020839,2]
[317430596,1709799038823,-1339.5013298,0.00020899,2]
[317430597,1709799038832,-44835.1606947,0.00022,2]
[317430598,1709799038841,-2773.41715718,0.00022,2]
[317430599,1709799038850,-351.0,0.00022,2]
[317430600,1709799038859,-8242.71882646,0.00022,2]
[317430601,1709799038871,-1668.03514243,0.00022191,2]
[317430602,1709799038880,-351.0,0.00022192,2]
[317430603,1709799038889,-257.329274,0.00022365,2]
[317430604,1709799038898,-172.880325,0.00022365,2]
[317430605,1709799038907,-257.32927,0.00022365,2]
[317430606,1709799038916,-172.880324,0.00022365,2]
[317430607,1709799038925,-165.386942,0.00022365,2]
[317430608,1709799038933,-154.397562,0.00022365,2]
[317430609,1709799038942,-172.880325,0.00022365,2]
[317430610,1709799038952,-500.0,0.00022381,2]
[317430611,1709799038961,-500.0,0.00022381,2]
[317430612,1709799038969,-500.0,0.00022381,2]
[317430613,1709799038978,-291.8253862,0.00022381,2]
[317430614,1709799038987,-500.0,0.00022381,2]
[317430615,1709799038996,-500.0,0.00022381,2]
[317430616,1709799039006,-615.84543472,0.00022381,2]
[317430617,1709799039015,-403.97532728,0.00022382,3]
[317430618,1709799039026,-5000.0,0.00022382,7]
[317430619,1709799039037,-25525.49683661,0.00022382,3]
[317430620,1709799039045,-9352.69009207,0.00022382,3]
[317430621,1709799039054,-5000.0,0.00022382,7]
[317430622,1709799039063,-1341.5574715,0.00022382,3]
[317430623,1709799039072,-621.41430569,0.00022608,2]
[317430624,1709799039081,-257.32927,0.00022644,2]
[317430625,1709799039092,-154.397562,0.00022644,2]
[317430626,1709799039100,-153.0,0.00022752,2]
[317430627,1709799039109,-1397.1783694,0.00022824,2]
[317430628,1709799039118,-1397.17836936,0.00022843,2]
[317430629,1709799039127,-1397.17836936,0.00022862,2]
[317430630,1709799039136,-1397.17836936,0.00022881,2]
[317430631,1709799039145,-45147.53738334,0.000229,2]
[317430632,1709799039154,-200.0,0.000229,2]
[317430634,1709799039163,-1397.17836936,0.000229,2]
[317430636,1709799039172,-12687.85002108,0.000229,2]
[317430638,1709799039181,-210.0,0.00022912,2]
[317430640,1709799039190,-172.880325,0.00022924,2]
[317430642,1709799039199,-172.880324,0.00022924,2]
[317430644,1709799039208,-172.880325,0.00022924,2]
[317430646,1709799039218,-257.32927,0.00022924,2]
[317430648,1709799039227,-154.397562,0.00022924,2]
[317430650,1709799039237,-438.15714545,0.00022998,2]
[317430652,1709799039246,-625.43159908,0.00022998,2]
[317430654,1709799039255,-1950.60602556,0.00022998,2]
[317430656,1709799039264,-596.10414782,0.00022998,2]
[317430658,1709799039273,-745.36465456,0.00022998,2]
[317430660,1709799039284,-1170.75169083,0.00022998,3]
[317430662,1709799039293,-163.28505548,0.00022998,2]
[317430664,1709799039303,-155.3144114,0.00022998,2]
[317430666,1709799039312,-265.53579139,0.00022998,2]
[317430668,1709799039320,-157.81000743,0.00022998,2]
[317430670,1709799039329,-1158.88140037,0.00022998,2]
[317430672,1709799039338,-176.20974066,0.00022998,2]
[317430674,1709799039348,-279.78176882,0.00022999,2]
[317430676,1709799039357,-500.0,0.00022999,2]
[317430678,1709799039367,-429.86518168,0.00022999,2]
[317430680,1709799039376,-1391.2056662,0.00022999,2]
[317430681,1709799039385,-160.0,0.00022999,2]
[317430682,1709799039394,-160.0,0.00022999,2]
[317430684,1709799039404,-3870605.31014149,0.00023,5]
[317430685,1709799039417,-56977.40014591,0.00023,5]
[317430686,1709799039429,-9979.31748249,0.00023,5]
[317430687,1709799039440,-170312.10246805,0.00023,5]
[317430688,1709799039463,-87010.26953618,0.00023,5]
[317430736,1709799042015,-1039.53501692,0.00023,5]
[317430753,1709799043840,-7304.46958581,0.00023,5]
[317430754,1709799043852,-5625.0,0.00023,5]
[317430755,1709799043865,-3927.78601698,0.00023,5]
[317430771,1709799046833,-625.47715376,0.00023,5]
[317430772,1709799046844,-244429.08820167,0.00023,5]
[317430773,1709799046855,-989.07567637,0.00023,5]
[317430775,1709799391603,10000.0,0.0002,2]
[317430780,1709799982408,150.0,0.000189,2]
[317430822,1709800190844,178.6395848,0.00019187,2]
[317430860,1709800232008,-1605.92382438,0.00020419,2]
[317430861,1709800232019,-429.03125533,0.0002042,2]
[317430862,1709800232029,-172.26223113,0.00020421,2]
[317430863,1709800232039,-150.0,0.00020511,2]
[317430864,1709800232049,-19533.99949347,0.00020511,2]
[317430865,1709800232058,-10264.2918001,0.00020512,2]
[317430866,1709800232068,-11902.19379826,0.00020527,2]
[317430951,1709800237961,-470.94318688,0.00020527,2]
[317430953,1709800237998,-9016.01486376,0.00020527,2]
[317430954,1709800238009,-205.863416,0.00021956,2]
[317430955,1709800238021,-172.880324,0.00021956,2]
[317430956,1709800238032,-205.863416,0.00021956,2]
[317430957,1709800238041,-165.386942,0.00021956,2]
[317430958,1709800238051,-167.264026,0.00021956,2]
[317430959,1709800238061,-172.880325,0.00021956,2]
[317430960,1709800238071,-834.89109779,0.00022,2]
[317430961,1709800238082,-351.0,0.00022,2]
[317430962,1709800238092,-8242.71882646,0.0002219,2]
[317430963,1709800238102,-1668.03514243,0.00022191,2]
[317430964,1709800238111,-351.0,0.00022192,2]
[317430965,1709800238121,-167.264026,0.00022322,2]
[317430966,1709800238130,-500.0,0.00022381,2]
[317430967,1709800238139,-500.0,0.00022381,2]
[317430968,1709800238148,-500.0,0.00022381,2]
[317430969,1709800238157,-500.0,0.00022381,2]
[317430970,1709800238166,-500.0,0.00022381,2]
[317430971,1709800238176,-615.84543472,0.00022381,2]
[317430972,1709800238185,-291.8253862,0.00022381,2]
[317430973,1709800238195,-5000.0,0.00022382,7]
[317430974,1709800238204,-1498.23382922,0.00022382,3]
[317430975,1709800238214,-33252.00053515,0.00022382,3]
[317430976,1709800238227,-6829.00559592,0.00022382,3]
[317430977,1709800238237,-582.08186945,0.00022382,3]
[317430978,1709800238246,-153.0,0.000224,2]
[317430979,1709800238256,-153.0,0.000224,2]
[317430980,1709800238266,-172.880324,0.00022505,2]
[317430981,1709800238280,-172.880325,0.00022505,2]
[317430982,1709800238289,-210.0,0.00022556,2]
[317430983,1709800238299,-167.264026,0.00022688,2]
[317430984,1709800238309,-1654.84504179,0.000228,6]
[317430985,1709800238318,-200.0,0.000228,2]
[317430986,1709800238327,-2923.67490559,0.000229,2]
[317430987,1709800238336,-6985.89184684,0.000229,2]
[317430988,1709800238345,-1396.3891289,0.000229,2]
[317430989,1709800238354,-154.95632605,0.00022975,2]
[317430990,1709800238363,-7899.56120569,0.00022998,3]
[317430991,1709800238373,-157.81000743,0.00022998,2]
[317430992,1709800238382,-438.15714545,0.00022998,2]
[317430993,1709800238392,-745.36465456,0.00022998,2]
[317430994,1709800238401,-279.78176882,0.00022998,2]
[317430995,1709800238410,-1950.60602556,0.00022998,2]
[317430996,1709800238420,-265.53579139,0.00022998,2]
[317430997,1709800238428,-176.20974066,0.00022998,2]
[317430998,1709800238437,-596.10414782,0.00022998,2]
[317430999,1709800238446,-163.28505548,0.00022998,2]
[317431000,1709800238456,-278.9595545,0.00022999,2]